{"text_format":"1","workbook":"xlsx","n_sheets":5,"sheets":["Set Mute","Recall Memory","Set Gain","Increment Decrement","Tables"],"not_rendered":{"charts":0,"images":0,"macros":1,"external_links":0,"defined_names":3,"comments":0,"pivot_tables":0},"unopened":[],"bounds":{"document_bytes":16777216,"sheet_cells":100000,"rows_first":2000,"rows_last":500,"rows_between":2000,"halvings":0,"cell_chars":16384,"cell_head_chars":4096},"cells_cut":0,"cells_raw":0,"read":"whole","date_system":"1900"}

{"sheet":"Set Mute","index":0,"n_rows":48,"n_cols":12,"rows_kept":48,"cut":false,"hidden":false,"merged":[]}
["BYTE",1,2,3,4,5,6,7,8]
[null,"Command = Set Mute"]
[null,"Header","Device Type","Unit","Command","data1 ","data 2","data 3","data 4"]
[null,"F4",{"$f":"VLOOKUP(C7,Tables!B3:P702,2,FALSE)","v":71},{"$f":"DEC2HEX(D7,2)","v":"01"},"02",{"$f":"VLOOKUP(F7,Tables!E3:U702,2,FALSE)","v":0},{"$f":"VLOOKUP(G7,Tables!H3:T702,2,FALSE)","v":0},{"$f":"VLOOKUP(H7,Tables!K3:U702,2,FALSE)","v":0},"00"]
[]
[]
["Select Bytes here >",null,"ALL Devices",1,"Mute","ALL OFF","ALL OFF","ALL OFF"]
[null,null,"DP548",0,"Set Mute","A on","1 on ","5 on ","not used"]
[null,null,"DP448",1,null,"B on","2 on","6 on"]
[null,null,"DP446",{"$f":"SUM(D9+1)","v":2},null,"AB on","1 + 2 on","5 + 6 on"]
[null,null,"DP444",{"$f":"SUM(D10+1)","v":3},null,"C on","3 on","7 on"]
[null,null,"DP426",4,null,"AC on","1 + 3 on","5 + 7 on"]
[null,null,"DP424",5,null,"BC on","2 + 3 on","6 + 7 on"]
[null,null,"Ti1048",6,null,"ABC on","1 + 2 + 3 on","5 + 6 + 7 on"]
[null,null,"DC1048",7,null,"D on","4 on","8 on"]
[null,null,"ALL",8,null,"AD on","1 + 4 on","5 + 8 on"]
[null,null,null,9,null,"BD on","2 + 4 on","6 + 8 on"]
[null,null,null,10,null,"ABD on","1 + 2 + 4 on","5 + 6 + 8 on"]
[null,null,null,11,null,"CD on","3 + 4 on","7 + 8 on"]
[null,null,null,12,null,"ACD on","1 + 3 + 4 on","5 + 7 + 8 on"]
[null,null,null,13,null,"BCD on","2 + 3 + 4 on","6 + 7 + 8 on"]
[null,null,null,14,null,"ABCD on","1 + 2 + 3 + 4 on","5 + 6 + 7 + 8 on"]
[null,null,null,15]
[null,null,null,16]
[null,null,null,17]
[null,null,null,18]
[null,null,null,19]
[null,null,null,20]
[null,null,null,21]
[null,null,null,22]
[null,null,null,23]
[null,null,null,24]
[null,null,null,25]
[null,null,null,{"$f":"SUM(D33+1)","v":26}]
[null,null,null,27]
[null,null,null,28]
[null,null,null,29]
[null,null,null,30]
[null,null,null,31]
[null,null,null,32]
[]
[]
[null,null,null,null,null,null,null,null,null,null,null,"Select Parameter from Pull down list"]
[]
[]
[]
[null,null,"Select Device","Select ID",null,"Input mute select","Outputs 1-4","Outputs 5-8"]
[null,null,null,"use 0 as global address"]

{"sheet":"Recall Memory","index":1,"n_rows":137,"n_cols":14,"rows_kept":137,"cut":false,"hidden":false,"merged":[]}
["BYTE",1,2,3,4,5,6,7,8]
[null,"Command = Recall Memory"]
[null,"Header","Device Type","Unit","Command","data1 ","data 2","data 3","data 4"]
[null,"F4",{"$f":"VLOOKUP(C7,Tables!B3:P702,2,FALSE)","v":71},{"$f":"DEC2HEX(D7,2)","v":"00"},"03",0,{"$f":"DEC2HEX(G7,2)","v":"01"},0,"00"]
[]
[]
["Select bytes here >",null,"ALL Devices",0,"Recall Memory",null,1]
[null,null,"DP548",0,null,null,1]
[null,null,"DP448",1,null,null,{"$f":"SUM(G8+1)","v":2}]
[null,null,"DP446",{"$f":"SUM(D9+1)","v":2},null,null,{"$f":"SUM(G9+1)","v":3}]
[null,null,"DP444",{"$f":"SUM(D10+1)","v":3},null,null,4]
[null,null,"DP426",4,null,null,5]
[null,null,"DP424",5,null,null,6]
[null,null,"Ti1048",6,null,null,7]
[null,null,"DC1048",7,null,null,8]
[null,null,"ALL",8,null,null,9]
[null,null,null,9,null,null,10]
[null,null,null,10,null,null,11]
[null,null,null,11,null,null,12]
[null,null,null,12,null,null,13]
[null,null,null,13,null,null,14]
[null,null,null,14,null,null,15]
[null,null,null,15,null,null,16]
[null,null,null,16,null,null,17]
[null,null,null,17,null,null,18]
[null,null,null,18,null,null,19]
[null,null,null,19,null,null,20]
[null,null,null,20,null,null,21]
[null,null,null,21,null,null,22]
[null,null,null,22,null,null,23]
[null,null,null,23,null,null,24]
[null,null,null,24,null,null,25]
[null,null,null,25,null,null,26]
[null,null,null,{"$f":"SUM(D33+1)","v":26},null,null,27]
[null,null,null,{"$f":"SUM(D34+1)","v":27},null,null,28]
[null,null,null,28,null,null,29]
[null,null,null,29,null,null,30]
[null,null,null,30,null,null,31]
[null,null,null,31,null,null,32]
[null,null,null,32,null,null,33]
[null,null,null,null,null,null,34]
[null,null,null,null,null,null,35]
[null,null,null,null,null,null,36]
[null,null,null,null,null,null,37,null,null,null,null,"Select Parameter from Pull down list"]
[null,null,null,null,null,null,{"$f":"SUM(G44+1)","v":38}]
[null,null,null,null,null,null,39]
[null,null,null,null,null,null,40]
[null,null,null,null,null,null,41]
[null,null,null,null,null,null,42]
[null,null,null,null,null,null,43]
[null,null,null,null,null,null,44]
[null,null,null,null,null,null,45]
[null,null,null,null,null,null,46]
[null,null,null,null,null,null,47]
[null,null,null,null,null,null,48]
[null,null,null,null,null,null,49]
[null,null,null,null,null,null,50]
[null,null,null,null,null,null,51]
[null,null,null,null,null,null,52]
[null,null,null,null,null,null,53]
[null,null,null,null,null,null,54]
[null,null,null,null,null,null,55]
[null,null,null,null,null,null,56]
[null,null,null,null,null,null,57]
[null,null,null,null,null,null,58]
[null,null,null,null,null,null,59]
[null,null,null,null,null,null,60]
[null,null,null,null,null,null,61]
[null,null,null,null,null,null,62]
[null,null,null,null,null,null,63]
[null,null,null,null,null,null,64]
[null,null,null,null,null,null,65]
[null,null,null,null,null,null,66]
[null,null,null,null,null,null,{"$f":"SUM(G73+1)","v":67}]
[null,null,null,null,null,null,{"$f":"SUM(G74+1)","v":68}]
[null,null,null,null,null,null,{"$f":"SUM(G75+1)","v":69}]
[null,null,null,null,null,null,{"$f":"SUM(G76+1)","v":70}]
[null,null,null,null,null,null,{"$f":"SUM(G77+1)","v":71}]
[null,null,null,null,null,null,72]
[null,null,null,null,null,null,73]
[null,null,null,null,null,null,74]
[null,null,null,null,null,null,75]
[null,null,null,null,null,null,76]
[null,null,null,null,null,null,77]
[null,null,null,null,null,null,78]
[null,null,null,null,null,null,79]
[null,null,null,null,null,null,80]
[null,null,null,null,null,null,81]
[null,null,null,null,null,null,82]
[null,null,null,null,null,null,83]
[null,null,null,null,null,null,84]
[null,null,null,null,null,null,85]
[null,null,null,null,null,null,{"$f":"SUM(G92+1)","v":86}]
[null,null,null,null,null,null,{"$f":"SUM(G93+1)","v":87}]
[null,null,null,null,null,null,88]
[null,null,null,null,null,null,89]
[null,null,null,null,null,null,90]
[null,null,null,null,null,null,91]
[null,null,null,null,null,null,92]
[null,null,null,null,null,null,93]
[null,null,null,null,null,null,94]
[null,null,null,null,null,null,95]
[null,null,null,null,null,null,96]
[null,null,null,null,null,null,97]
[null,null,null,null,null,null,98]
[null,null,null,null,null,null,{"$f":"SUM(G105+1)","v":99}]
[null,null,null,null,null,null,{"$f":"SUM(G106+1)","v":100}]
[null,null,null,null,null,null,{"$f":"SUM(G107+1)","v":101}]
[null,null,null,null,null,null,{"$f":"SUM(G108+1)","v":102}]
[null,null,null,null,null,null,{"$f":"SUM(G109+1)","v":103}]
[null,null,null,null,null,null,{"$f":"SUM(G110+1)","v":104}]
[null,null,null,null,null,null,105]
[null,null,null,null,null,null,106]
[null,null,null,null,null,null,107]
[null,null,null,null,null,null,108]
[null,null,null,null,null,null,109]
[null,null,null,null,null,null,110]
[null,null,null,null,null,null,111]
[null,null,null,null,null,null,{"$f":"SUM(G118+1)","v":112}]
[null,null,null,null,null,null,113]
[null,null,null,null,null,null,114]
[null,null,null,null,null,null,115]
[null,null,null,null,null,null,116]
[null,null,null,null,null,null,117]
[null,null,null,null,null,null,118]
[null,null,null,null,null,null,119]
[null,null,null,null,null,null,120]
[null,null,null,null,null,null,121]
[]
[null,null,null,null,null,null,null,null,null,null,null,null,null,"Select Parameter from Pull down list"]
[]
[]
[]
[]
[null,null,"Select Device","Select ID",null,null,"Select Memory"]
[]
[null,null,null,"use 0 as global address"]

{"sheet":"Set Gain","index":2,"n_rows":136,"n_cols":16,"rows_kept":136,"cut":false,"hidden":false,"merged":[]}
["BYTE",1,2,3,4,5,6,7,8]
[null,"Command = Set Gain"]
[null,"Header","Device Type","Unit","Command","data1 ","data 2","data 3","data 4"]
[null,"F4",{"$f":"VLOOKUP(C7,Tables!B3:P702,2,FALSE)","v":71},{"$f":"DEC2HEX(D7,2)","v":"00"},"01",{"$f":"VLOOKUP(F7,Tables!H25:P702,2,FALSE)","v":1},{"$f":"O8","v":0.859375},{"$f":"P8","v":110},"00"]
[]
[]
["Select bytes here >",null,"ALL Devices",0,"Set Gain","Input Gain A",-29,0]
[null,null,"DP548",0,null,"Input Gain A",15,null,"not used",null,null,null,128,null,{"$f":"area(G7)","v":0.859375},{"$f":"Area2(G7)","v":110}]
[null,null,"DP448",1,null,"Input Gain B",{"$f":"SUM(G8-1)","v":14},null,null,null,null,null,{"$f":"DEC2HEX(M8,2)","v":"80"},null,{"$f":"DEC2HEX(O8)","v":"0"},{"$f":"DEC2HEX(P8)","v":"6E"}]
[null,null,"DP446",{"$f":"SUM(D9+1)","v":2},null,"Input Gain C",{"$f":"SUM(G9-1)","v":13},null,null,null,null,null,{"$f":"DEC2BIN(M8)","v":"10000000"},null,{"$f":"DEC2BIN(O8)","v":"0"},{"$f":"DEC2BIN(P8)","v":"1101110"}]
[null,null,"DP444",{"$f":"SUM(D10+1)","v":3},null,"Input Gain D",12,null,null,null,null,null,null,null,"msb","lsb"]
[null,null,"DP426",4,null,"Output Gain 1",11]
[null,null,"DP424",5,null,"Output Gain 2",10,null,null,null,null,null,null,10000,{"$f":"Binary_MSB(N13)","v":0}]
[null,null,"Ti1048",6,null,"Output Gain 3",9]
[null,null,"DC1048",7,null,"Output Gain 4",8]
[null,null,"ALL",8,null,"Output Gain 5",7]
[null,null,null,9,null,"Output Gain 6",6]
[null,null,null,10,null,"Output Gain 7",5]
[null,null,null,11,null,"Output Gain 8",4]
[null,null,null,12,null,null,3]
[null,null,null,13,null,null,2]
[null,null,null,14,null,null,1]
[null,null,null,15,null,null,0]
[null,null,null,16,null,null,-1]
[null,null,null,17,null,null,-2]
[null,null,null,18,null,null,-3]
[null,null,null,19,null,null,-4]
[null,null,null,20,null,null,-5]
[null,null,null,21,null,null,-6]
[null,null,null,22,null,null,-7]
[null,null,null,23,null,null,-8]
[null,null,null,24,null,null,-9]
[null,null,null,25,null,null,-10]
[null,null,null,{"$f":"SUM(D33+1)","v":26},null,null,-11]
[null,null,null,{"$f":"SUM(D34+1)","v":27},null,null,-12]
[null,null,null,28,null,null,-13]
[null,null,null,29,null,null,-14]
[null,null,null,30,null,null,-15]
[null,null,null,31,null,null,-16]
[null,null,null,32,null,null,-17]
[null,null,null,null,null,null,-18]
[null,null,null,null,null,null,-19]
[null,null,null,null,null,null,-20]
[null,null,null,null,null,null,-21]
[null,null,null,null,null,null,-22]
[null,null,null,null,null,null,-23]
[null,null,null,null,null,null,-24]
[null,null,null,null,null,null,-25]
[null,null,null,null,null,null,-26]
[null,null,null,null,null,null,-27]
[null,null,null,null,null,null,-28]
[null,null,null,null,null,null,-29]
[null,null,null,null,null,null,-30]
[null,null,null,null,null,null,-31]
[null,null,null,null,null,null,-32]
[null,null,null,null,null,null,-33]
[null,null,null,null,null,null,-34]
[null,null,null,null,null,null,-35]
[null,null,null,null,null,null,-36]
[null,null,null,null,null,null,-37]
[null,null,null,null,null,null,-38]
[null,null,null,null,null,null,-39]
[null,null,null,null,null,null,-40]
[]
[null,null,null,null,null,null,null,null,null,null,null,null,null,"Select Parameter from Pull down list"]
[]
[]
[]
[]
[null,null,"Select Device","Select ID",null,"select input or output channel","Select gain"]
[null,null,null,"use 0 as global address"]
[]
[]
[]
[]
[]
[]
[]
[]
[]
[]
[]
[]
[]
[]
[]
[]
[]
[]
[]
[]
[]
[]
[]
[]
[]
[]
[]
[]
[]
[]
[]
[]
[]
[]
[]
[]
[]
[]
[]
[]
[]
[]
[]
[]
[]
[]
[]
[]
[]
[]
[]
[]
[]
[]
[]
[]
[]
[]
[]
[]
[]
[]
[null,null,null,"Select Id"]
[]
[null,null,null,"use 0 as global address"]

{"sheet":"Increment Decrement","index":3,"n_rows":72,"n_cols":13,"rows_kept":72,"cut":false,"hidden":false,"merged":[]}
["BYTE",1,2,3,4,5,6,7,8]
[]
[null,"Header","Device Type","Unit","Command","Channel","Inc/ Dec Gain Value","Max Gain Value","Min Gain Value"]
[null,"F4",{"$f":"VLOOKUP(C7,Tables!B3:P702,2,FALSE)","v":71},{"$f":"DEC2HEX(D7,2)","v":"01"},1,{"$f":"VLOOKUP(F7,Tables!H25:P702,2,FALSE)","v":2},{"$f":"VLOOKUP(G7,Tables!E28:F38,2,FALSE)","v":"7F"},{"$f":"VLOOKUP(H7,Tables!A27:F82,3,FALSE)","v":77},{"$f":"VLOOKUP(I7,Tables!A27:F82,3,FALSE)","v":{"$error":"#N/A"}}]
[]
[]
["Select bytes here >",null,"ALL Devices",1,"Increment / Decrement","Input Gain B",-1,-10,-40]
[]
[null,null,null,null,null,null,-6]
[null,null,"DP548",0,null,"Input Gain A",12,15]
[null,null,"DP448",1,null,"Input Gain B",6,14]
[null,null,"DP446",{"$f":"SUM(D11+1)","v":2},null,"Input Gain C",3,13]
[null,null,"DP444",{"$f":"SUM(D12+1)","v":3},null,"Input Gain D",2,12]
[null,null,"DP426",4,null,"Output Gain 1",1,{"$f":"SUM(H13-1)","v":11}]
[null,null,"DP424",5,null,"Output Gain 2",-1,{"$f":"SUM(H14-1)","v":10}]
[null,null,"Ti1048",6,null,"Output Gain 3 ",-2,9]
[null,null,"DC1048",7,null,"Output Gain 4",-3,8]
[null,null,"All",8,null,"Output Gain 5",-6,7]
[null,null,null,9,null,"Output Gain 6",-12,6]
[null,null,null,10,null,"Output Gain 7",null,5]
[null,null,null,11,null,"Output Gain 8",null,4]
[null,null,null,12,null,null,null,3]
[null,null,null,13,null,null,null,2]
[null,null,null,14,null,null,null,1]
[null,null,null,15,null,null,null,0]
[null,null,null,16,null,null,null,-1]
[null,null,null,17,null,null,null,-2]
[null,null,null,18,null,null,null,-3]
[null,null,null,19,null,null,null,-4]
[null,null,null,20,null,null,null,-5]
[null,null,null,21,null,null,null,-6]
[null,null,null,22,null,null,null,{"$f":"SUM(H31-1)","v":-7}]
[null,null,null,23,null,null,null,-8]
[null,null,null,24,null,null,null,-9]
[null,null,null,25,null,null,null,-10]
[null,null,null,{"$f":"SUM(D35+1)","v":26},null,null,null,-11]
[null,null,null,27,null,null,null,-12]
[null,null,null,28,null,null,null,-13]
[null,null,null,29,null,null,null,-14]
[null,null,null,30,null,null,null,{"$f":"SUM(H39-1)","v":-15}]
[null,null,null,31,null,null,null,-16]
[null,null,null,32,null,null,null,-17]
[null,null,null,null,null,null,null,-18]
[null,null,null,null,null,null,null,-19]
[null,null,null,null,null,null,null,-20]
[null,null,null,null,null,null,null,-21]
[null,null,null,null,null,null,null,-22]
[null,null,null,null,null,null,null,{"$f":"SUM(H47-1)","v":-23}]
[null,null,null,null,null,null,null,-24]
[null,null,null,null,null,null,null,-25]
[null,null,null,null,null,null,null,-26]
[null,null,null,null,null,null,null,-27]
[null,null,null,null,null,null,null,-28]
[null,null,null,null,null,null,null,-29]
[null,null,null,null,null,null,null,{"$f":"SUM(H54-1)","v":-30}]
[null,null,null,null,null,null,null,{"$f":"SUM(H55-1)","v":-31}]
[null,null,null,null,null,null,null,-32]
[null,null,null,null,null,null,null,-33]
[null,null,null,null,null,null,null,-34]
[null,null,null,null,null,null,null,-35]
[null,null,null,null,null,null,null,-36]
[null,null,null,null,null,null,null,-37]
[null,null,null,null,null,null,null,-38]
[null,null,null,null,null,null,null,{"$f":"SUM(H63-1)","v":-39}]
[null,null,null,null,null,null,null,-40]
[null,null,null,null,null,null,null,null,null,null,null,null,"Select Parameter from Pull down list"]
[]
[]
[]
[]
[null,null,"Select Device","Select ID",null,"select input or output channel","Select increment / decrement Value in dB","Select maximum limit","Select Minimum limit"]
[null,null,null,"use 0 as global address"]

{"sheet":"Tables","index":4,"n_rows":88,"n_cols":19,"rows_kept":88,"cut":false,"hidden":false,"merged":[[30,0,30,2]]}
[]
[]
[null,"Device Type",null,null,"Input Mutes",null,null,"Output Mutes",null,null,"Output Mutes"]
[null,null,null,null,null,null,null,null,null,null,null,null,null,"gain","gain above -40",null,null,"Byte 1","Byte 2"]
[]
[null,"ALL Devices",71,null,"ALL OFF",0,null,"ALL OFF",0,null,"ALL OFF",0,null,15,{"$f":"SUM(N6+40)","v":55},{"$f":"SUM(O6/0.1)","v":550},{"$f":"DEC2BIN(P6)","v":{"$error":"#NUM!"}}]
[null,"DP544","7A",null,"A on",1,null,"1 on ",1,null,"5 on ",1,null,{"$f":"SUM(N6-1)","v":14},{"$f":"SUM(N7+40)","v":54},{"$f":"SUM(O7/0.1)","v":540},{"$error":"#NUM!"}]
[null,"DP548",79,null,"B on",{"$f":"SUM(F7+1)","v":2},null,"2 on",{"$f":"SUM(I7+1)","v":2},null,"6 on",{"$f":"SUM(L7+1)","v":2},null,{"$f":"SUM(N7-1)","v":13},53,530,{"$error":"#NUM!"}]
[null,"DP448",78,null,"AB on",{"$f":"SUM(F8+1)","v":3},null,"1 + 2 on",{"$f":"SUM(I8+1)","v":3},null,"5 + 6 on",{"$f":"SUM(L8+1)","v":3},null,12,52,520,{"$error":"#NUM!"}]
[null,"DP446",76,null,"C on",4,null,"3 on",4,null,"7 on",4,null,11,51,510,"111111110"]
[null,"DP444",74,null,"AC on",5,null,"1 + 3 on",5,null,"5 + 7 on",5,null,10,50,500,"111110100"]
[null,"DP426",73,null,"BC on",6,null,"2 + 3 on",6,null,"6 + 7 on",6,null,9,49,490,"111101010"]
[null,"DP424",72,null,"ABC on",7,null,"1 + 2 + 3 on",7,null,"5 + 6 + 7 on",7,null,8,48,480,"111100000"]
[null,"Ti1048",11,null,"D on",8,null,"4 on",8,null,"8 on",8,null,7,47,470,"111010110"]
[null,"DC1048",10,null,"AD on",9,null,"1 + 4 on",9,null,"5 + 8 on",9,null,6,46,460,"111001100"]
[null,"Delta40",12,null,"BD on","0A",null,"2 + 4 on","0A",null,"6 + 8 on","0A",null,5,45,450,"111000010"]
[null,"Delta80",14,null,"ABD on","0B",null,"1 + 2 + 4 on","0B",null,"5 + 6 + 8 on","0B",null,4,44,440,"110111000"]
[null,"Delta100",16,null,"CD on","0C",null,"3 + 4 on","0C",null,"7 + 8 on","0C",null,3,43,430,"110101110"]
[null,"DPA40",13,null,"ACD on","0D",null,"1 + 3 + 4 on","0D",null,"5 + 7 + 8 on","0D",null,2,42,420,"110100100"]
[null,"DPA80",15,null,"BCD on","0E",null,"2 + 3 + 4 on","0E",null,"6 + 7 + 8 on","0E",null,1,41,410,"110011010"]
[null,"DPA100",17,null,"ABCD on","0F",null,"1 + 2 + 3 + 4 on","0F",null,"5 + 6 + 7 + 8 on","0F",null,0,40,400,"110010000"]
[null,"Delta ALL",18,null,null,null,null,null,null,null,null,null,null,-1,39,390,"110000110"]
[null,"OEM Delta40",19,null,null,null,null,null,null,null,null,null,null,-2,38,380,"101111100"]
[null,"OEM Delta80","1A",null,null,null,null,null,null,null,null,null,null,-3,37,370,"101110010"]
[null,"OEM Delta100","1B",null,null,null,null,null,null,null,"6C",-20,null,-4,36,360,"101101000"]
[null,null,null,null,"inc / dec look up",null,null,"Input Gain A",1,null,null,null,null,-5,35,350,"101011110"]
[null,null,null,null,"not limits",null,null,"Input Gain B",2,null,null,null,null,-6,34,340,"101010100"]
[null,null,null,null,12,24,null,"Input Gain C",3,null,null,null,null,-7,33,330,"101001010"]
[null,null,null,null,9,9,null,"Input Gain D",4,null,null,null,null,-8,32,320,"101000000"]
[null,null,null,null,3,6,null,"Output Gain 1",5,null,null,null,null,-9,31,310,"100110110"]
["inc / dec limits",null,null,null,2,4,null,"Output Gain 2",6,null,null,null,null,-10,30,300,"100101100"]
[null,null,null,null,1,2,null,"Output Gain 3",7,null,null,null,null,-11,29,290,"100100010"]
[15,{"$f":"DEC2HEX(A33,2)","v":"0F"},"0F",null,-1,"7F",null,"Output Gain 4",8,null,null,null,null,-12,28,280,"100011000"]
[14,"0E","0E",null,-2,"7E",null,"Output Gain 5",9,null,null,null,null,-13,27,270,"100001110"]
[13,"0D","0D",null,-3,"7A",null,"Output Gain 6","0a",null,null,null,null,-14,26,260,"100000100"]
[12,"0C","0C",null,-6,74,null,"Output Gain 7","0b",null,null,null,null,-15,25,250,"11111010"]
[{"$f":"SUM(A36-1)","v":11},"0B","0B",null,-9,"6E",null,"Output Gain 8","0c",null,null,null,null,-16,24,240,"11110000"]
[{"$f":"SUM(A37-1)","v":10},"0A","0A",null,-12,68,null,null,null,null,null,null,null,-17,23,230,{"$f":"DEC2BIN(P38)","v":"11100110"}]
[9,"09","09",null,null,null,null,null,null,null,null,null,null,-18,22,220,"11011100"]
[8,"08","08",null,null,null,null,null,null,null,null,null,null,-19,21,210,"11010010"]
[7,"07","07",null,null,null,null,null,null,null,null,null,null,-20,20,200,"11001000"]
[6,"06","06",null,null,null,null,null,null,null,null,null,null,-21,19,190,"10111110"]
[5,"05","05",null,null,null,null,null,null,null,null,null,null,-22,18,180,"10110100"]
[4,"04","04",null,null,null,null,null,null,null,null,null,null,-23,17,170,"10101010"]
[3,"03","03",null,null,null,null,null,null,null,null,null,null,-24,16,160,"10100000"]
[2,"02","02",null,null,null,null,null,null,null,null,null,null,-25,15,150,"10010110"]
[1,"01","01",null,null,null,null,null,null,null,null,null,null,-26,14,140,"10001100"]
[0,"00","00",null,null,null,null,null,null,null,null,null,null,-27,13,130,"10000010"]
[-1,"FFFFFFFFFF","7F",null,null,null,null,null,null,null,null,null,null,-28,12,120,"1111000"]
[-2,"FFFFFFFFFE","7E",null,null,null,null,null,null,null,null,null,null,-29,11,110,"1101110"]
[-3,"FFFFFFFFFD","7D",null,null,null,null,null,null,null,null,null,null,-30,10,100,"1100100"]
[-4,"FFFFFFFFFC","7C",null,null,null,null,null,null,null,null,null,null,-31,9,90,"1011010"]
[-5,"FFFFFFFFFB","7B",null,null,null,null,null,null,null,null,null,null,-32,8,80,"1010000"]
[-6,"FFFFFFFFFA","7A",null,null,null,null,null,null,null,null,null,null,-33,7,70,"1000110"]
[{"$f":"SUM(A54-1)","v":-7},"FFFFFFFFF9",79,null,null,null,null,null,null,null,null,null,null,-34,6,60,"111100"]
[-8,"FFFFFFFFF8",78,null,null,null,null,null,null,null,null,null,null,-35,5,50,"110010"]
[-9,"FFFFFFFFF7",76,null,null,null,null,null,null,null,null,null,null,-36,4,40,"101000"]
[-10,"FFFFFFFFF6",77,null,null,null,null,null,null,null,null,null,null,-37,3,30,"11110"]
[-11,"FFFFFFFFF5",75,null,null,null,null,null,null,null,null,null,null,-38,2,20,"10100"]
[-12,"FFFFFFFFF4",74,null,null,null,null,null,null,null,null,null,null,-39,1,10,"1010"]
[-13,"FFFFFFFFF3",73,null,null,null,null,null,null,null,null,null,null,-40,0,0,"0"]
[-14,"FFFFFFFFF2",72]
[{"$f":"SUM(A62-1)","v":-15},"FFFFFFFFF1",71]
[-16,"FFFFFFFFF0",70]
[-17,{"$f":"DEC2HEX(A65,2)","v":"FFFFFFFFEF"},"6F"]
[-18,"FFFFFFFFEE","6E"]
[-19,"FFFFFFFFED","6D"]
[-20,"FFFFFFFFEC","6C"]
[-21,"FFFFFFFFEB","6B"]
[-22,"FFFFFFFFEA","6A"]
[{"$f":"SUM(A70-1)","v":-23},"FFFFFFFFE9",69]
[-24,"FFFFFFFFE8",68]
[-25,"FFFFFFFFE7",67]
[-26,"FFFFFFFFE6",66]
[-27,"FFFFFFFFE5",65]
[-28,"FFFFFFFFE4",64]
[-29,"FFFFFFFFE3",63]
[{"$f":"SUM(A77-1)","v":-30},"FFFFFFFFE2",62]
[{"$f":"SUM(A78-1)","v":-31},"FFFFFFFFE1",61]
[-32,"FFFFFFFFE0",60]
[-33,"FFFFFFFFDF","5F"]
[-34,"FFFFFFFFDE","5E"]
[-35,"FFFFFFFFDD","5D"]
[-36,"FFFFFFFFDC","5C"]
[-37,"FFFFFFFFDB","5B"]
[-38,"FFFFFFFFDA","5A"]
[-39,"FFFFFFFFD9",59]
[-40,"FFFFFFFFD8",58]